{"text_format":"3","workbook":"xlsx","n_sheets":1,"sheets":["Разходи за преустройство баня"],"not_rendered":{"defined_names":3},"read":"whole","date_system":"1900"}

{"sheet":"Разходи за преустройство баня","index":0,"n_rows":24,"n_cols":10,"rows_kept":24,"merged":[[1,1,2,3],[2,4,2,6],[2,7,2,9],[22,1,22,3],[22,4,22,6],[22,7,22,9],[23,1,23,3],[23,4,23,6],[23,7,23,9]]}
[null,"Работен лист \"Разходи за преустройство баня\""]
[null,"ЗАБЕЛЕЖКА: Колоните \"Разлика\" в таблица ще се покажат, ако действителните суми са надвишили прогнозните.  Червените числа показват надвишаване (отрицателно), а черните показват стойност под прогнозната (положително). "]
[{"$nulls":4},"Разходи по артикул (лв.)",null,null,"Общо разходи (лв.)"]
[null,"Област","Артикули","Количество","Прогнозни","Действителни","Разлика","Прогнозни ","Действителни ","Разлика "]
[null,"Баня/душ","Вана, чугун, 5', стандартна",1,{"v":250,"d":"250.00 лв."},{"$f":"RANDBETWEEN(E5+2,E5+20)","v":{"v":268,"d":"268.00 лв."}},{"$f":"IFERROR(Разходи[[#This Row],[Прогнозни]]-Разходи[[#This Row],[Действителни]], \"\")","v":{"v":-18,"d":"-18.00 лв."}},{"$f":"IFERROR(Разходи[[#This Row],[Количество]]*Разходи[[#This Row],[Прогнозни]], \"\")","v":{"v":250,"d":"250.00 лв."}},{"$f":"IFERROR(Разходи[[#This Row],[Количество]]*Разходи[[#This Row],[Действителни]], \"\")","v":{"v":268,"d":"268.00 лв."}},{"$f":"IFERROR(Разходи[[#This Row],[Прогнозни ]]-Разходи[[#This Row],[Действителни ]], \"\")","v":{"v":-18,"d":"-18.00 лв."}}]
[null,"Баня/душ","Врати за душ кабина, подвижни, стандартни",1,{"v":200,"d":"200.00 лв."},{"v":213,"d":"213.00 лв."},{"$f":"IFERROR(Разходи[[#This Row],[Прогнозни]]-Разходи[[#This Row],[Действителни]], \"\")","v":{"v":-13,"d":"-13.00 лв."}},{"$f":"IFERROR(Разходи[[#This Row],[Количество]]*Разходи[[#This Row],[Прогнозни]], \"\")","v":{"v":200,"d":"200.00 лв."}},{"$f":"IFERROR(Разходи[[#This Row],[Количество]]*Разходи[[#This Row],[Действителни]], \"\")","v":{"v":213,"d":"213.00 лв."}},{"$f":"IFERROR(Разходи[[#This Row],[Прогнозни ]]-Разходи[[#This Row],[Действителни ]], \"\")","v":{"v":-13,"d":"-13.00 лв."}}]
[null,"Баня/душ","Душ слушалка, стандартна",1,{"v":50,"d":"50.00 лв."},{"v":55,"d":"55.00 лв."},{"$f":"IFERROR(Разходи[[#This Row],[Прогнозни]]-Разходи[[#This Row],[Действителни]], \"\")","v":{"v":-5,"d":"-5.00 лв."}},{"$f":"IFERROR(Разходи[[#This Row],[Количество]]*Разходи[[#This Row],[Прогнозни]], \"\")","v":{"v":50,"d":"50.00 лв."}},{"$f":"IFERROR(Разходи[[#This Row],[Количество]]*Разходи[[#This Row],[Действителни]], \"\")","v":{"v":55,"d":"55.00 лв."}},{"$f":"IFERROR(Разходи[[#This Row],[Прогнозни ]]-Разходи[[#This Row],[Действителни ]], \"\")","v":{"v":-5,"d":"-5.00 лв."}}]
[null,"Баня/душ","Стени за вана, стандартни",1,{"v":200,"d":"200.00 лв."},{"v":206,"d":"206.00 лв."},{"$f":"IFERROR(Разходи[[#This Row],[Прогнозни]]-Разходи[[#This Row],[Действителни]], \"\")","v":{"v":-6,"d":"-6.00 лв."}},{"$f":"IFERROR(Разходи[[#This Row],[Количество]]*Разходи[[#This Row],[Прогнозни]], \"\")","v":{"v":200,"d":"200.00 лв."}},{"$f":"IFERROR(Разходи[[#This Row],[Количество]]*Разходи[[#This Row],[Действителни]], \"\")","v":{"v":206,"d":"206.00 лв."}},{"$f":"IFERROR(Разходи[[#This Row],[Прогнозни ]]-Разходи[[#This Row],[Действителни ]], \"\")","v":{"v":-6,"d":"-6.00 лв."}}]
[null,"Шкафове","Шкаф за лекарства 24'', луксозен",1,{"v":200,"d":"200.00 лв."},{"v":214,"d":"214.00 лв."},{"$f":"IFERROR(Разходи[[#This Row],[Прогнозни]]-Разходи[[#This Row],[Действителни]], \"\")","v":{"v":-14,"d":"-14.00 лв."}},{"$f":"IFERROR(Разходи[[#This Row],[Количество]]*Разходи[[#This Row],[Прогнозни]], \"\")","v":{"v":200,"d":"200.00 лв."}},{"$f":"IFERROR(Разходи[[#This Row],[Количество]]*Разходи[[#This Row],[Действителни]], \"\")","v":{"v":214,"d":"214.00 лв."}},{"$f":"IFERROR(Разходи[[#This Row],[Прогнозни ]]-Разходи[[#This Row],[Действителни ]], \"\")","v":{"v":-14,"d":"-14.00 лв."}}]
[null,"Шкафове","Модулни шкафчета 30'', стандартни",2,{"v":100,"d":"100.00 лв."},{"v":107,"d":"107.00 лв."},{"$f":"IFERROR(Разходи[[#This Row],[Прогнозни]]-Разходи[[#This Row],[Действителни]], \"\")","v":{"v":-7,"d":"-7.00 лв."}},{"$f":"IFERROR(Разходи[[#This Row],[Количество]]*Разходи[[#This Row],[Прогнозни]], \"\")","v":{"v":200,"d":"200.00 лв."}},{"$f":"IFERROR(Разходи[[#This Row],[Количество]]*Разходи[[#This Row],[Действителни]], \"\")","v":{"v":214,"d":"214.00 лв."}},{"$f":"IFERROR(Разходи[[#This Row],[Прогнозни ]]-Разходи[[#This Row],[Действителни ]], \"\")","v":{"v":-14,"d":"-14.00 лв."}}]
[null,"Плотове","Керамични плочки, луксозни (кол. в лин. метри).",5,{"v":22.5,"d":"22.50 лв."},{"v":36,"d":"36.00 лв."},{"$f":"IFERROR(Разходи[[#This Row],[Прогнозни]]-Разходи[[#This Row],[Действителни]], \"\")","v":{"v":-13.5,"d":"-13.50 лв."}},{"$f":"IFERROR(Разходи[[#This Row],[Количество]]*Разходи[[#This Row],[Прогнозни]], \"\")","v":{"v":112.5,"d":"112.50 лв."}},{"$f":"IFERROR(Разходи[[#This Row],[Количество]]*Разходи[[#This Row],[Действителни]], \"\")","v":{"v":180,"d":"180.00 лв."}},{"$f":"IFERROR(Разходи[[#This Row],[Прогнозни ]]-Разходи[[#This Row],[Действителни ]], \"\")","v":{"v":-67.5,"d":"-67.50 лв."}}]
[null,"Смесители","Смесител, вана, стандартен",1,{"v":90,"d":"90.00 лв."},{"v":103,"d":"103.00 лв."},{"$f":"IFERROR(Разходи[[#This Row],[Прогнозни]]-Разходи[[#This Row],[Действителни]], \"\")","v":{"v":-13,"d":"-13.00 лв."}},{"$f":"IFERROR(Разходи[[#This Row],[Количество]]*Разходи[[#This Row],[Прогнозни]], \"\")","v":{"v":90,"d":"90.00 лв."}},{"$f":"IFERROR(Разходи[[#This Row],[Количество]]*Разходи[[#This Row],[Действителни]], \"\")","v":{"v":103,"d":"103.00 лв."}},{"$f":"IFERROR(Разходи[[#This Row],[Прогнозни ]]-Разходи[[#This Row],[Действителни ]], \"\")","v":{"v":-13,"d":"-13.00 лв."}}]
[null,"Смесители","Смесител, душ, една дръжка, стандартен",1,{"v":115,"d":"115.00 лв."},{"v":126,"d":"126.00 лв."},{"$f":"IFERROR(Разходи[[#This Row],[Прогнозни]]-Разходи[[#This Row],[Действителни]], \"\")","v":{"v":-11,"d":"-11.00 лв."}},{"$f":"IFERROR(Разходи[[#This Row],[Количество]]*Разходи[[#This Row],[Прогнозни]], \"\")","v":{"v":115,"d":"115.00 лв."}},{"$f":"IFERROR(Разходи[[#This Row],[Количество]]*Разходи[[#This Row],[Действителни]], \"\")","v":{"v":126,"d":"126.00 лв."}},{"$f":"IFERROR(Разходи[[#This Row],[Прогнозни ]]-Разходи[[#This Row],[Действителни ]], \"\")","v":{"v":-11,"d":"-11.00 лв."}}]
[null,"Смесители","Смесител мивка, стандартен",1,{"v":95,"d":"95.00 лв."},{"v":102,"d":"102.00 лв."},{"$f":"IFERROR(Разходи[[#This Row],[Прогнозни]]-Разходи[[#This Row],[Действителни]], \"\")","v":{"v":-7,"d":"-7.00 лв."}},{"$f":"IFERROR(Разходи[[#This Row],[Количество]]*Разходи[[#This Row],[Прогнозни]], \"\")","v":{"v":95,"d":"95.00 лв."}},{"$f":"IFERROR(Разходи[[#This Row],[Количество]]*Разходи[[#This Row],[Действителни]], \"\")","v":{"v":102,"d":"102.00 лв."}},{"$f":"IFERROR(Разходи[[#This Row],[Прогнозни ]]-Разходи[[#This Row],[Действителни ]], \"\")","v":{"v":-7,"d":"-7.00 лв."}}]
[null,"Подова настилка","Керамични плочки, стандартни (кол. в кв. метри.",35,{"v":12,"d":"12.00 лв."},{"v":21,"d":"21.00 лв."},{"$f":"IFERROR(Разходи[[#This Row],[Прогнозни]]-Разходи[[#This Row],[Действителни]], \"\")","v":{"v":-9,"d":"-9.00 лв."}},{"$f":"IFERROR(Разходи[[#This Row],[Количество]]*Разходи[[#This Row],[Прогнозни]], \"\")","v":{"v":420,"d":"420.00 лв."}},{"$f":"IFERROR(Разходи[[#This Row],[Количество]]*Разходи[[#This Row],[Действителни]], \"\")","v":{"v":735,"d":"735.00 лв."}},{"$f":"IFERROR(Разходи[[#This Row],[Прогнозни ]]-Разходи[[#This Row],[Действителни ]], \"\")","v":{"v":-315,"d":"-315.00 лв."}}]
[null,"Оборудване","Поставка за кърпи, стандартна",2,{"v":15,"d":"15.00 лв."},{"v":25,"d":"25.00 лв."},{"$f":"IFERROR(Разходи[[#This Row],[Прогнозни]]-Разходи[[#This Row],[Действителни]], \"\")","v":{"v":-10,"d":"-10.00 лв."}},{"$f":"IFERROR(Разходи[[#This Row],[Количество]]*Разходи[[#This Row],[Прогнозни]], \"\")","v":{"v":30,"d":"30.00 лв."}},{"$f":"IFERROR(Разходи[[#This Row],[Количество]]*Разходи[[#This Row],[Действителни]], \"\")","v":{"v":50,"d":"50.00 лв."}},{"$f":"IFERROR(Разходи[[#This Row],[Прогнозни ]]-Разходи[[#This Row],[Действителни ]], \"\")","v":{"v":-20,"d":"-20.00 лв."}}]
[null,"Оборудване","Поставка за тоалетна хартия",1,{"v":10,"d":"10.00 лв."},{"v":28,"d":"28.00 лв."},{"$f":"IFERROR(Разходи[[#This Row],[Прогнозни]]-Разходи[[#This Row],[Действителни]], \"\")","v":{"v":-18,"d":"-18.00 лв."}},{"$f":"IFERROR(Разходи[[#This Row],[Количество]]*Разходи[[#This Row],[Прогнозни]], \"\")","v":{"v":10,"d":"10.00 лв."}},{"$f":"IFERROR(Разходи[[#This Row],[Количество]]*Разходи[[#This Row],[Действителни]], \"\")","v":{"v":28,"d":"28.00 лв."}},{"$f":"IFERROR(Разходи[[#This Row],[Прогнозни ]]-Разходи[[#This Row],[Действителни ]], \"\")","v":{"v":-18,"d":"-18.00 лв."}}]
[null,"Осветление","Вградени лампи, стандартни",4,{"v":25,"d":"25.00 лв."},{"v":38,"d":"38.00 лв."},{"$f":"IFERROR(Разходи[[#This Row],[Прогнозни]]-Разходи[[#This Row],[Действителни]], \"\")","v":{"v":-13,"d":"-13.00 лв."}},{"$f":"IFERROR(Разходи[[#This Row],[Количество]]*Разходи[[#This Row],[Прогнозни]], \"\")","v":{"v":100,"d":"100.00 лв."}},{"$f":"IFERROR(Разходи[[#This Row],[Количество]]*Разходи[[#This Row],[Действителни]], \"\")","v":{"v":152,"d":"152.00 лв."}},{"$f":"IFERROR(Разходи[[#This Row],[Прогнозни ]]-Разходи[[#This Row],[Действителни ]], \"\")","v":{"v":-52,"d":"-52.00 лв."}}]
[null,"Мивки","Тоалетна, стандартна",2,{"v":60,"d":"60.00 лв."},{"v":63,"d":"63.00 лв."},{"$f":"IFERROR(Разходи[[#This Row],[Прогнозни]]-Разходи[[#This Row],[Действителни]], \"\")","v":{"v":-3,"d":"-3.00 лв."}},{"$f":"IFERROR(Разходи[[#This Row],[Количество]]*Разходи[[#This Row],[Прогнозни]], \"\")","v":{"v":120,"d":"120.00 лв."}},{"$f":"IFERROR(Разходи[[#This Row],[Количество]]*Разходи[[#This Row],[Действителни]], \"\")","v":{"v":126,"d":"126.00 лв."}},{"$f":"IFERROR(Разходи[[#This Row],[Прогнозни ]]-Разходи[[#This Row],[Действителни ]], \"\")","v":{"v":-6,"d":"-6.00 лв."}}]
[null,"Други",null,1,{"v":20,"d":"20.00 лв."},{"v":39,"d":"39.00 лв."},{"$f":"IFERROR(Разходи[[#This Row],[Прогнозни]]-Разходи[[#This Row],[Действителни]], \"\")","v":{"v":-19,"d":"-19.00 лв."}},{"$f":"IFERROR(Разходи[[#This Row],[Количество]]*Разходи[[#This Row],[Прогнозни]], \"\")","v":{"v":20,"d":"20.00 лв."}},{"$f":"IFERROR(Разходи[[#This Row],[Количество]]*Разходи[[#This Row],[Действителни]], \"\")","v":{"v":39,"d":"39.00 лв."}},{"$f":"IFERROR(Разходи[[#This Row],[Прогнозни ]]-Разходи[[#This Row],[Действителни ]], \"\")","v":{"v":-19,"d":"-19.00 лв."}}]
[null,"Междинна сума",null,null,{"$f":"SUBTOTAL(109,Разходи[Прогнозни])","v":{"v":1464.5,"d":"1,464.50 лв."}},{"$f":"SUBTOTAL(109,Разходи[Действителни])","v":{"v":1644,"d":"1,644.00 лв."}},{"$f":"SUBTOTAL(109,Разходи[Разлика])","v":{"v":-179.5,"d":"-179.50 лв."}},{"$f":"SUBTOTAL(109,Разходи[[Прогнозни ]])","v":{"v":2212.5,"d":"2,212.50 лв."}},{"$f":"SUBTOTAL(109,Разходи[[Действителни ]])","v":{"v":2811,"d":"2,811.00 лв."}},{"$f":"SUBTOTAL(109,Разходи[[Разлика ]])","v":{"v":-598.5,"d":"-598.50 лв."}}]
[]
[null,"Неочаквани разходи (добавете приблизително 30%)",null,null,{"$f":"IFERROR(Разходи[[#Totals],[Прогнозни]]*0.3, \"\")","v":{"v":439.34999999999997,"d":"439.35 лв."}},null,null,{"$f":"IFERROR(Разходи[[#Totals],[Прогнозни ]]*0.3, \"\")","v":{"v":663.75,"d":"663.75 лв."}}]
[null,"Общи разходи",null,null,{"$f":"IFERROR(SUM(E21:E21), \"\")","v":{"v":1464.5,"d":"1,464.50 лв."}},null,null,{"$f":"IFERROR(SUM(Разходи[[#Totals],[Прогнозни ]],Излишък), \"\")","v":{"v":2876.25,"d":"2,876.25 лв."}}]